[Event "*** Titled Tuesday Blitz"]
[Site "Chess.com"]
[Date "2020.01.07"]
[Round "2"]
[White "severomorskij"]
[Black "Mikhail_Golubev"]
[Result "0-1"]
[WhiteElo "2888"]
[BlackElo "2612"]
[TimeControl "180+2"]
[EndTime "13:25:55 PST"]
[Termination "Mikhail_Golubev won by checkmate"]

1. d4 {[%clk 0:03:01.9]} 1... Nf6 {[%clk 0:03:00.2]} 2. c4 {[%clk 0:03:01.3]}
2... g6 {[%clk 0:03:00.3]} 3. Nc3 {[%clk 0:03:02.9]} 3... Bg7 {[%clk 0:03:01.6]}
4. e4 {[%clk 0:03:04.5]} 4... d6 {[%clk 0:03:02.9]} 5. Bd3 {[%clk 0:03:05.5]}
5... O-O {[%clk 0:02:57.2]} 6. Nge2 {[%clk 0:03:06]} 6... Nc6 {[%clk 0:02:57.8]}
7. O-O {[%clk 0:03:06.3]} 7... Nh5 {[%clk 0:02:58.7]} 8. Be3 {[%clk 0:03:05.6]}
8... e5 {[%clk 0:02:56.2]} 9. d5 {[%clk 0:03:06.4]} 9... Nd4 {[%clk 0:02:50.6]}
10. Nb5 {[%clk 0:02:42.5]} 10... Nxe2+ {[%clk 0:02:40.9]} 11. Bxe2 {[%clk
0:02:43]} 11... Nf4 {[%clk 0:02:34.9]} 12. Nxa7 {[%clk 0:02:26.4]} 12... Rxa7
{[%clk 0:01:53.6]} 13. Bxa7 {[%clk 0:02:25.3]} 13... b6 {[%clk 0:01:54.5]} 14.
a4 {[%clk 0:02:26]} 14... Qg5 {[%clk 0:01:38.2]} 15. g3 {[%clk 0:02:20.1]} 15...
Nxe2+ {[%clk 0:01:24.9]} 16. Qxe2 {[%clk 0:02:18.5]} 16... Bg4 {[%clk
0:01:22.8]} 17. f3 {[%clk 0:02:15.1]} 17... Bh3 {[%clk 0:01:23.8]} 18. a5 {[%clk
0:02:01.6]} 18... Bxf1 {[%clk 0:01:24.3]} 19. Qxf1 {[%clk 0:01:43.5]} 19... bxa5
{[%clk 0:01:17.1]} 20. Qe2 {[%clk 0:01:30.5]} 20... f5 {[%clk 0:01:11.6]} 21.
Be3 {[%clk 0:01:26.5]} 21... Qh5 {[%clk 0:01:01.9]} 22. exf5 {[%clk 0:01:23.1]}
22... Qxf5 {[%clk 0:01:00.9]} 23. Kg2 {[%clk 0:01:16.9]} 23... e4 {[%clk
0:01:01.3]} 24. f4 {[%clk 0:01:11.3]} 24... Rb8 {[%clk 0:01:01.8]} 25. Bc1
{[%clk 0:01:09.8]} 25... Bd4 {[%clk 0:00:43.4]} 26. Rxa5 {[%clk 0:01:06.8]}
26... e3 {[%clk 0:00:44.2]} 27. Ra3 {[%clk 0:00:37.4]} 27... Qe4+ {[%clk
0:00:44.6]} 28. Kh3 {[%clk 0:00:22.6]} 28... Qf5+ {[%clk 0:00:32.8]} 29. Kg2
{[%clk 0:00:21.7]} 29... Qb1 {[%clk 0:00:26.3]} 30. Qg4 {[%clk 0:00:05.3]} 30...
Qe4+ {[%clk 0:00:21.1]} 31. Qf3 {[%clk 0:00:03.2]} 31... Qc2+ {[%clk 0:00:20.9]}
32. Kh3 {[%clk 0:00:04.5]} 32... Qxc1 {[%clk 0:00:21.5]} 33. Qe4 {[%clk
0:00:05.7]} 33... Bg7 {[%clk 0:00:21.2]} 34. Rxe3 {[%clk 0:00:05.1]} 34... Qf1+
{[%clk 0:00:16.1]} 35. Kg4 {[%clk 0:00:04.9]} 35... Rf8 {[%clk 0:00:14]} 36.
Qe6+ {[%clk 0:00:04.3]} 36... Kh8 {[%clk 0:00:14.7]} 37. Re2 {[%clk 0:00:05.2]}
37... Bf6 {[%clk 0:00:13.4]} 38. f5 {[%clk 0:00:02.9]} 38... h5# {[%clk
0:00:13.9]} 0-1

[Event "*** Titled Tuesday Blitz"]
[Site "Chess.com"]
[Date "2020.01.07"]
[Round "2"]
[White "Chessalary"]
[Black "WelshTiger"]
[Result "0-1"]
[WhiteElo "2067"]
[BlackElo "2384"]
[TimeControl "180+2"]
[EndTime "13:25:55 PST"]
[Termination "WelshTiger won by resignation"]

1. e4 {[%clk 0:03:01.9]} 1... c5 {[%clk 0:02:59.4]} 2. Nf3 {[%clk 0:03:03.1]}
2... d6 {[%clk 0:02:59.8]} 3. d4 {[%clk 0:03:04.6]} 3... cxd4 {[%clk 0:03:01.1]}
4. Nxd4 {[%clk 0:03:06.5]} 4... Nf6 {[%clk 0:03:02.7]} 5. Nc3 {[%clk 0:03:08.1]}
5... Nc6 {[%clk 0:03:04.3]} 6. Nxc6 {[%clk 0:03:01]} 6... bxc6 {[%clk 0:03:05]}
7. Be2 {[%clk 0:03:02.3]} 7... g6 {[%clk 0:03:05]} 8. O-O {[%clk 0:03:03.6]}
8... Bg7 {[%clk 0:03:06.1]} 9. Be3 {[%clk 0:03:00.2]} 9... O-O {[%clk
0:03:03.9]} 10. f3 {[%clk 0:03:01.6]} 10... a5 {[%clk 0:02:59.3]} 11. Qe1 {[%clk
0:02:58.3]} 11... Ba6 {[%clk 0:02:58.6]} 12. Bxa6 {[%clk 0:02:57.2]} 12... Rxa6
{[%clk 0:02:59.2]} 13. Qh4 {[%clk 0:02:51.6]} 13... Nd7 {[%clk 0:02:54.9]} 14.
Bh6 {[%clk 0:02:33]} 14... Qb6+ {[%clk 0:02:52.9]} 15. Kh1 {[%clk 0:02:28.7]}
15... Bxh6 {[%clk 0:02:53.6]} 16. Qxh6 {[%clk 0:02:16.7]} 16... Qxb2 {[%clk
0:02:54.4]} 17. Qd2 {[%clk 0:02:13.1]} 17... Qb4 {[%clk 0:02:42.5]} 18. Rfd1
{[%clk 0:02:03.9]} 18... Qc5 {[%clk 0:02:42.7]} 19. Rab1 {[%clk 0:02:01.4]}
19... Ne5 {[%clk 0:02:35.3]} 20. Qe2 {[%clk 0:01:53.5]} 20... Raa8 {[%clk
0:02:31.3]} 21. Na4 {[%clk 0:01:38.6]} 21... Qc4 {[%clk 0:02:08.6]} 22. Qxc4
{[%clk 0:01:30.7]} 22... Nxc4 {[%clk 0:02:10.5]} 23. Rb7 {[%clk 0:01:24]} 23...
Rfe8 {[%clk 0:02:09]} 24. Rdb1 {[%clk 0:01:19.6]} 24... c5 {[%clk 0:01:59]} 25.
Nb6 {[%clk 0:01:13.9]} 25... Nxb6 {[%clk 0:01:59.9]} 26. R1xb6 {[%clk 0:01:15]}
26... Kg7 {[%clk 0:01:59.5]} 27. Kg1 {[%clk 0:01:13.8]} 27... Kf6 {[%clk
0:01:59.4]} 28. Kf2 {[%clk 0:01:14.5]} 28... a4 {[%clk 0:01:57.2]} 29. f4 {[%clk
0:01:14.8]} 29... a3 {[%clk 0:01:44.6]} 30. Ke3 {[%clk 0:01:05.3]} 30... Ra4
{[%clk 0:01:44.5]} 31. Kd3 {[%clk 0:00:48.5]} 31... Ke6 {[%clk 0:01:41.8]} 32.
c4 {[%clk 0:00:44.7]} 32... Rea8 {[%clk 0:01:34.1]} 33. g4 {[%clk 0:00:43.5]}
33... R8a6 {[%clk 0:01:30]} 34. f5+ {[%clk 0:00:41.9]} 34... Kf6 {[%clk
0:01:30.5]} 35. g5+ {[%clk 0:00:28.9]} 35... Kxg5 {[%clk 0:01:30.7]} 36. Rxa6
{[%clk 0:00:29.7]} 36... Rxa6 {[%clk 0:01:31.3]} 37. Rxe7 {[%clk 0:00:31.2]}
37... Kf6 {[%clk 0:01:32.1]} 38. Re8 {[%clk 0:00:26.9]} 38... gxf5 {[%clk
0:01:31.3]} 39. exf5 {[%clk 0:00:27.3]} 39... Kxf5 {[%clk 0:01:31.1]} 40. Ke3
{[%clk 0:00:28.5]} 40... Rb6 {[%clk 0:01:31.2]} 41. Rd8 {[%clk 0:00:28.5]} 41...
Ke6 {[%clk 0:01:31.7]} 42. Ra8 {[%clk 0:00:29.3]} 42... Rb4 {[%clk 0:01:32.1]}
43. Rxa3 {[%clk 0:00:30.5]} 43... Rxc4 {[%clk 0:01:32.9]} 44. Ra8 {[%clk
0:00:28.2]} 44... Rc3+ {[%clk 0:01:29.8]} 45. Kd2 {[%clk 0:00:28.7]} 45... Rh3
{[%clk 0:01:30.6]} 46. a4 {[%clk 0:00:29.8]} 46... Rxh2+ {[%clk 0:01:31]} 47.
Ke3 {[%clk 0:00:31.1]} 47... Kd5 {[%clk 0:01:29.2]} 48. a5 {[%clk 0:00:32.3]}
48... Ra2 {[%clk 0:01:28.2]} 49. a6 {[%clk 0:00:33.2]} 49... h5 {[%clk
0:01:28.1]} 50. a7 {[%clk 0:00:33.9]} 50... h4 {[%clk 0:01:29.4]} 51. Kf3 {[%clk
0:00:33]} 51... h3 {[%clk 0:01:29.7]} 52. Rh8 {[%clk 0:00:30.1]} 52... Rxa7
{[%clk 0:01:29.7]} 53. Rxh3 {[%clk 0:00:31.1]} 53... Ra3+ {[%clk 0:01:30.6]} 0-1

[Event "*** Titled Tuesday Blitz"]
[Site "Chess.com"]
[Date "2020.01.07"]
[Round "2"]
[White "MarcoRiehle"]
[Black "Sebastian"]
[Result "1-0"]
[WhiteElo "2633"]
[BlackElo "2940"]
[TimeControl "180+2"]
[EndTime "13:25:59 PST"]
[Termination "MarcoRiehle won by resignation"]

1. e4 {[%clk 0:03:01.9]} 1... c5 {[%clk 0:03:00.5]} 2. Nf3 {[%clk 0:03:01.2]}
2... d6 {[%clk 0:03:02]} 3. d4 {[%clk 0:03:01.5]} 3... cxd4 {[%clk 0:03:03.5]}
4. Nxd4 {[%clk 0:03:03.1]} 4... Nf6 {[%clk 0:03:04.8]} 5. f3 {[%clk 0:03:04.4]}
5... e5 {[%clk 0:03:04.2]} 6. Nb3 {[%clk 0:03:03.5]} 6... Be7 {[%clk 0:03:05.7]}
7. c4 {[%clk 0:03:04.1]} 7... a5 {[%clk 0:03:06.9]} 8. Be3 {[%clk 0:03:03.2]}
8... a4 {[%clk 0:03:08]} 9. N3d2 {[%clk 0:03:03.9]} 9... O-O {[%clk 0:02:59.3]}
10. Be2 {[%clk 0:03:01.8]} 10... Qa5 {[%clk 0:02:57.2]} 11. O-O {[%clk
0:02:55.7]} 11... Be6 {[%clk 0:02:54.4]} 12. Na3 {[%clk 0:02:53.8]} 12... Bd8
{[%clk 0:02:53.1]} 13. Kh1 {[%clk 0:02:53.1]} 13... Bb6 {[%clk 0:02:53.1]} 14.
c5 {[%clk 0:02:53.6]} 14... Bxc5 {[%clk 0:02:53]} 15. Ndc4 {[%clk 0:02:53.6]}
15... Qd8 {[%clk 0:02:33.3]} 16. Qd2 {[%clk 0:02:35.5]} 16... Nc6 {[%clk
0:02:30.4]} 17. Nb5 {[%clk 0:02:30.5]} 17... Bxe3 {[%clk 0:02:19.8]} 18. Qxe3
{[%clk 0:02:16.3]} 18... d5 {[%clk 0:02:16.7]} 19. exd5 {[%clk 0:02:13.4]} 19...
Nxd5 {[%clk 0:02:18.6]} 20. Qc5 {[%clk 0:02:08.8]} 20... Nf4 {[%clk 0:02:19.3]}
21. Rfd1 {[%clk 0:02:04.2]} 21... Qg5 {[%clk 0:01:59.5]} 22. Bf1 {[%clk
0:02:03.2]} 22... Rad8 {[%clk 0:01:59.7]} 23. Nbd6 {[%clk 0:01:44.7]} 23... Rd7
{[%clk 0:01:15.5]} 24. Nxb7 {[%clk 0:01:32.8]} 24... Rxb7 {[%clk 0:01:07.6]} 25.
Qxc6 {[%clk 0:01:32.8]} 25... Rbb8 {[%clk 0:01:07.4]} 26. g3 {[%clk 0:01:28.7]}
26... Ng6 {[%clk 0:00:49.7]} 27. Qxa4 {[%clk 0:01:21.6]} 27... h5 {[%clk
0:00:48.4]} 28. Nd6 {[%clk 0:01:03.7]} 28... Rxb2 {[%clk 0:00:45.3]} 29. Qa3
{[%clk 0:01:02.9]} 29... Rbb8 {[%clk 0:00:42.9]} 30. Ne4 {[%clk 0:01:02.3]}
30... Qf5 {[%clk 0:00:35.6]} 31. Qe3 {[%clk 0:00:59.4]} 31... h4 {[%clk
0:00:33.6]} 32. g4 {[%clk 0:00:55.7]} 32... Qf4 {[%clk 0:00:34.2]} 33. Qxf4
{[%clk 0:00:56.1]} 33... Nxf4 {[%clk 0:00:36]} 34. a4 {[%clk 0:00:55]} 34...
Rfc8 {[%clk 0:00:22.8]} 35. a5 {[%clk 0:00:54.2]} 35... Rb2 {[%clk 0:00:21.5]}
36. Rd2 {[%clk 0:00:51.8]} 36... Rb7 {[%clk 0:00:17.7]} 37. Ba6 {[%clk
0:00:49.4]} 37... Rbb8 {[%clk 0:00:09.1]} 38. Bxc8 {[%clk 0:00:49.7]} 38... Rxc8
{[%clk 0:00:11]} 39. a6 {[%clk 0:00:48.1]} 39... Bd5 {[%clk 0:00:12.2]} 40. a7
{[%clk 0:00:39.6]} 40... Ba8 {[%clk 0:00:11.9]} 41. Rb2 {[%clk 0:00:35.9]} 41...
Kh7 {[%clk 0:00:12.4]} 42. Rb8 {[%clk 0:00:36.1]} 42... Rc2 {[%clk 0:00:13]} 43.
Rxa8 {[%clk 0:00:35.6]} 43... h3 {[%clk 0:00:13.3]} 44. Rh8+ {[%clk 0:00:33.7]}
44... Kxh8 {[%clk 0:00:14.1]} 45. a8=Q+ {[%clk 0:00:35.2]} 45... Kh7 {[%clk
0:00:16]} 46. Ng5+ {[%clk 0:00:33.8]} 46... Kh6 {[%clk 0:00:17.4]} 47. Nxf7+
{[%clk 0:00:32.3]} 47... Kh7 {[%clk 0:00:18.2]} 48. Qe4+ {[%clk 0:00:33.5]} 1-0

[Event "*** Titled Tuesday Blitz"]
[Site "Chess.com"]
[Date "2020.01.07"]
[Round "2"]
[White "liczner"]
[Black "Rakesh"]
[Result "0-1"]
[WhiteElo "2793"]
[BlackElo "2457"]
[TimeControl "180+2"]
[EndTime "13:25:59 PST"]
[Termination "Rakesh won on time"]

1. e4 {[%clk 0:03:01.9]} 1... c5 {[%clk 0:03:00.7]} 2. Nf3 {[%clk 0:03:02.5]}
2... e6 {[%clk 0:02:54.8]} 3. d4 {[%clk 0:03:02.8]} 3... cxd4 {[%clk 0:02:56.7]}
4. Nxd4 {[%clk 0:03:04.7]} 4... a6 {[%clk 0:02:57.7]} 5. Bd3 {[%clk 0:03:05.2]}
5... Nf6 {[%clk 0:02:56.3]} 6. O-O {[%clk 0:03:05.3]} 6... Qc7 {[%clk
0:02:56.6]} 7. Qe2 {[%clk 0:03:05]} 7... d6 {[%clk 0:02:57]} 8. c4 {[%clk
0:03:04.3]} 8... Be7 {[%clk 0:02:57.3]} 9. b3 {[%clk 0:03:00.3]} 9... Nbd7
{[%clk 0:02:58]} 10. Bb2 {[%clk 0:03:00.8]} 10... b6 {[%clk 0:02:48.8]} 11. Nc3
{[%clk 0:03:01.6]} 11... Bb7 {[%clk 0:02:49.2]} 12. Rae1 {[%clk 0:03:03]} 12...
O-O {[%clk 0:02:01.1]} 13. f4 {[%clk 0:03:02.6]} 13... Nc5 {[%clk 0:01:57]} 14.
Bb1 {[%clk 0:02:57.2]} 14... Nfd7 {[%clk 0:01:57.9]} 15. b4 {[%clk 0:02:34.5]}
15... Bf6 {[%clk 0:01:50.5]} 16. Qd2 {[%clk 0:02:25.4]} 16... Bxd4+ {[%clk
0:01:37.7]} 17. Qxd4 {[%clk 0:02:25.6]} 17... e5 {[%clk 0:01:39.6]} 18. Nd5
{[%clk 0:01:25.8]} 18... Bxd5 {[%clk 0:01:24.5]} 19. Qxd5 {[%clk 0:01:27.7]}
19... Na4 {[%clk 0:01:25.3]} 20. Ba1 {[%clk 0:01:25.3]} 20... Rac8 {[%clk
0:01:22.8]} 21. Rc1 {[%clk 0:01:24.2]} 21... b5 {[%clk 0:01:14.3]} 22. Rfd1
{[%clk 0:01:01.2]} 22... Ndb6 {[%clk 0:00:49.8]} 23. Qxd6 {[%clk 0:00:58.5]}
23... Qxd6 {[%clk 0:00:48]} 24. Rxd6 {[%clk 0:01:00.4]} 24... Nxc4 {[%clk
0:00:49]} 25. Rxa6 {[%clk 0:01:00]} 25... exf4 {[%clk 0:00:49.7]} 26. Bd3 {[%clk
0:00:31.2]} 26... Nab6 {[%clk 0:00:38.8]} 27. Bd4 {[%clk 0:00:22.4]} 27... Rfd8
{[%clk 0:00:37.1]} 28. Bxc4 {[%clk 0:00:12.9]} 28... Nxc4 {[%clk 0:00:39]} 29.
Bc5 {[%clk 0:00:11.8]} 29... g5 {[%clk 0:00:37.2]} 30. a4 {[%clk 0:00:12.2]}
30... Nd6 {[%clk 0:00:26.7]} 31. Re1 {[%clk 0:00:04.5]} 31... Nb7 {[%clk
0:00:17.5]} 32. Be7 {[%clk 0:00:05.4]} 32... Rd7 {[%clk 0:00:17.1]} 33. Bxg5
{[%clk 0:00:06.3]} 33... bxa4 {[%clk 0:00:18.5]} 34. Bxf4 {[%clk 0:00:05.9]}
34... Rc4 {[%clk 0:00:19.6]} 35. Rxa4 {[%clk 0:00:06.5]} 35... Kg7 {[%clk
0:00:17.2]} 0-1

[Event "*** Titled Tuesday Blitz"]
[Site "Chess.com"]
[Date "2020.01.07"]
[Round "2"]
[White "Olga_Zhuravleva"]
[Black "Witik"]
[Result "1/2-1/2"]
[WhiteElo "2366"]
[BlackElo "2677"]
[TimeControl "180+2"]
[EndTime "13:26:02 PST"]
[Termination "Game drawn by repetition"]

1. e4 {[%clk 0:03:01.9]} 1... c6 {[%clk 0:03:00]} 2. Nc3 {[%clk 0:03:02.2]} 2...
d5 {[%clk 0:03:00.8]} 3. Nf3 {[%clk 0:03:03.8]} 3... dxe4 {[%clk 0:03:01.3]} 4.
Nxe4 {[%clk 0:03:05.7]} 4... Nf6 {[%clk 0:03:03.2]} 5. Ng3 {[%clk 0:03:06.7]}
5... c5 {[%clk 0:03:04.1]} 6. Bb5+ {[%clk 0:02:59.8]} 6... Bd7 {[%clk
0:03:01.9]} 7. Bd3 {[%clk 0:03:00.8]} 7... Nc6 {[%clk 0:03:00.7]} 8. O-O {[%clk
0:03:00.2]} 8... g6 {[%clk 0:02:59.6]} 9. b3 {[%clk 0:03:00.1]} 9... Bg7 {[%clk
0:03:00.3]} 10. Bb2 {[%clk 0:03:01.7]} 10... O-O {[%clk 0:03:01.9]} 11. Kh1
{[%clk 0:03:02.1]} 11... b6 {[%clk 0:02:54.9]} 12. a3 {[%clk 0:03:01.8]} 12...
Re8 {[%clk 0:02:52.2]} 13. Ng5 {[%clk 0:02:56.1]} 13... Nd4 {[%clk 0:02:45.2]}
14. Bc4 {[%clk 0:02:51.3]} 14... e6 {[%clk 0:02:46]} 15. N5e4 {[%clk 0:02:43.4]}
15... Nd5 {[%clk 0:02:38.8]} 16. f4 {[%clk 0:02:22.5]} 16... Bc6 {[%clk
0:02:36.3]} 17. Bd3 {[%clk 0:02:18.5]} 17... h6 {[%clk 0:02:18.1]} 18. Rb1
{[%clk 0:02:13.1]} 18... f5 {[%clk 0:02:18.7]} 19. Nc3 {[%clk 0:02:08.5]} 19...
Kh7 {[%clk 0:02:18.1]} 20. Nce2 {[%clk 0:02:06.3]} 20... e5 {[%clk 0:02:16.8]}
21. fxe5 {[%clk 0:02:05.8]} 21... Bxe5 {[%clk 0:02:17.9]} 22. Nxd4 {[%clk
0:02:05.9]} 22... cxd4 {[%clk 0:02:18.7]} 23. Qf3 {[%clk 0:01:45.9]} 23... Qh4
{[%clk 0:02:14.7]} 24. Rbe1 {[%clk 0:01:13.6]} 24... Nb4 {[%clk 0:02:06.9]} 25.
Qf2 {[%clk 0:01:13.9]} 25... Nxd3 {[%clk 0:02:06]} 26. cxd3 {[%clk 0:01:14.1]}
26... Bg7 {[%clk 0:01:23.5]} 27. Kg1 {[%clk 0:01:09]} 27... Bb5 {[%clk
0:01:05.1]} 28. Qf3 {[%clk 0:01:01.5]} 28... Rac8 {[%clk 0:01:02.7]} 29. Rxe8
{[%clk 0:00:59.4]} 29... Rxe8 {[%clk 0:01:02.9]} 30. Nxf5 {[%clk 0:01:00.3]}
30... gxf5 {[%clk 0:00:46]} 31. Qxf5+ {[%clk 0:01:01]} 31... Kh8 {[%clk
0:00:47.9]} 32. Qxb5 {[%clk 0:01:01.2]} 32... Re2 {[%clk 0:00:46]} 33. Qd5
{[%clk 0:00:46.8]} 33... Rxd2 {[%clk 0:00:43.9]} 34. Bc1 {[%clk 0:00:27]} 34...
Rxd3 {[%clk 0:00:36.4]} 35. Bf4 {[%clk 0:00:26.2]} 35... Qg4 {[%clk 0:00:31.9]}
36. Bg3 {[%clk 0:00:20]} 36... Qg6 {[%clk 0:00:26.6]} 37. Be5 {[%clk 0:00:19.4]}
37... Rd2 {[%clk 0:00:21.8]} 38. Bxg7+ {[%clk 0:00:15.7]} 38... Qxg7 {[%clk
0:00:23.2]} 39. Qa8+ {[%clk 0:00:15.3]} 39... Kh7 {[%clk 0:00:20.2]} 40. Qe4+
{[%clk 0:00:16.1]} 40... Kh8 {[%clk 0:00:21.7]} 41. Qa8+ {[%clk 0:00:16.9]}
41... Kh7 {[%clk 0:00:19.6]} 42. Qe4+ {[%clk 0:00:17.7]} 42... Kh8 {[%clk
0:00:20.9]} 43. Qa8+ {[%clk 0:00:19.1]} 1/2-1/2

[Event "*** Titled Tuesday Blitz"]
[Site "Chess.com"]
[Date "2020.01.07"]
[Round "2"]
[White "TST2014"]
[Black "Rainbow2014"]
[Result "1-0"]
[WhiteElo "2508"]
[BlackElo "2271"]
[TimeControl "180+2"]
[EndTime "13:26:09 PST"]
[Termination "TST2014 won by resignation"]

1. d4 {[%clk 0:03:01.9]} 1... Nf6 {[%clk 0:02:58.3]} 2. c4 {[%clk 0:02:59.5]}
2... e6 {[%clk 0:02:58.9]} 3. Nf3 {[%clk 0:02:59.9]} 3... d5 {[%clk 0:02:45.5]}
4. Nc3 {[%clk 0:02:57]} 4... Nbd7 {[%clk 0:02:39.2]} 5. cxd5 {[%clk 0:02:54]}
5... exd5 {[%clk 0:02:24.6]} 6. Bg5 {[%clk 0:02:55.2]} 6... Be7 {[%clk
0:02:12.8]} 7. e3 {[%clk 0:02:54.8]} 7... c6 {[%clk 0:02:09.2]} 8. Bd3 {[%clk
0:02:54.6]} 8... O-O {[%clk 0:02:09.7]} 9. Qc2 {[%clk 0:02:54.8]} 9... Re8
{[%clk 0:02:10.3]} 10. O-O {[%clk 0:02:49.4]} 10... Nf8 {[%clk 0:02:04.3]} 11.
Rae1 {[%clk 0:02:46.8]} 11... Ne4 {[%clk 0:02:02.9]} 12. Bxe7 {[%clk 0:02:45.2]}
12... Qxe7 {[%clk 0:02:01.2]} 13. Bxe4 {[%clk 0:02:46.3]} 13... dxe4 {[%clk
0:02:01.2]} 14. Nd2 {[%clk 0:02:48.2]} 14... f5 {[%clk 0:02:00.5]} 15. f3 {[%clk
0:02:48.9]} 15... exf3 {[%clk 0:02:00.6]} 16. Nxf3 {[%clk 0:02:50.1]} 16... Be6
{[%clk 0:02:01.5]} 17. e4 {[%clk 0:02:45.9]} 17... fxe4 {[%clk 0:01:59.4]} 18.
Rxe4 {[%clk 0:02:46.3]} 18... h6 {[%clk 0:02:00.2]} 19. Rfe1 {[%clk 0:02:47]}
19... Qf7 {[%clk 0:01:15.5]} 20. Ne5 {[%clk 0:02:36.7]} 20... Qf5 {[%clk
0:01:11.7]} 21. Rf1 {[%clk 0:02:31.1]} 21... Qh5 {[%clk 0:01:09.1]} 22. Qf2
{[%clk 0:02:29.1]} 22... Nd7 {[%clk 0:01:03.6]} 23. Rh4 {[%clk 0:02:24.7]} 23...
Qg5 {[%clk 0:01:01.3]} 24. Ne4 {[%clk 0:02:25]} 24... Qe7 {[%clk 0:00:50.8]} 25.
Ng6 {[%clk 0:02:17.3]} 25... Qb4 {[%clk 0:00:48.7]} 26. a3 {[%clk 0:02:15.8]}
26... Qb3 {[%clk 0:00:43.5]} 27. Nd6 {[%clk 0:02:14.9]} 27... Red8 {[%clk
0:00:38.4]} 28. Ne7+ {[%clk 0:02:08.5]} 28... Kh7 {[%clk 0:00:35.6]} 29. Qe2
{[%clk 0:01:43.3]} 29... Rf8 {[%clk 0:00:33.7]} 30. Qe4+ {[%clk 0:01:43.1]}
30... Kh8 {[%clk 0:00:27.3]} 31. Ng6+ {[%clk 0:01:39.2]} 31... Kg8 {[%clk
0:00:27.5]} 32. Nxf8 {[%clk 0:01:22.5]} 32... Rxf8 {[%clk 0:00:29.4]} 33. Rhf4
{[%clk 0:01:20.8]} 33... Rxf4 {[%clk 0:00:29.3]} 34. Qxf4 {[%clk 0:01:21.8]}
34... Qd5 {[%clk 0:00:30]} 35. Nc8 {[%clk 0:01:17.4]} 35... Qc4 {[%clk
0:00:27.1]} 36. Ne7+ {[%clk 0:01:17.2]} 36... Kh8 {[%clk 0:00:26.5]} 37. Ng6+
{[%clk 0:01:15.8]} 37... Kg8 {[%clk 0:00:25.3]} 38. Ne5 {[%clk 0:01:16.7]} 38...
Nxe5 {[%clk 0:00:25.2]} 39. dxe5 {[%clk 0:01:17.5]} 39... Qc5+ {[%clk
0:00:24.5]} 40. Kh1 {[%clk 0:01:18]} 40... a5 {[%clk 0:00:25.3]} 41. Rd1 {[%clk
0:01:09.2]} 41... Bd5 {[%clk 0:00:24.5]} 42. Rf1 {[%clk 0:01:01.7]} 42... Qc2
{[%clk 0:00:21.2]} 43. Qf8+ {[%clk 0:01:02.2]} 43... Kh7 {[%clk 0:00:22.1]} 44.
Qf5+ {[%clk 0:01:03.9]} 44... Qxf5 {[%clk 0:00:22]} 45. Rxf5 {[%clk 0:01:05.6]}
45... Kg6 {[%clk 0:00:22.5]} 46. Rf8 {[%clk 0:01:06]} 46... b5 {[%clk
0:00:21.1]} 47. Kg1 {[%clk 0:01:06.4]} 47... b4 {[%clk 0:00:19.7]} 48. Kf2
{[%clk 0:01:04.5]} 48... bxa3 {[%clk 0:00:20]} 49. bxa3 {[%clk 0:01:04.8]} 49...
a4 {[%clk 0:00:21.4]} 50. Ke3 {[%clk 0:01:04.5]} 50... Kg5 {[%clk 0:00:22.5]}
51. Kd4 {[%clk 0:01:05.1]} 51... h5 {[%clk 0:00:23.5]} 52. g3 {[%clk 0:01:05.9]}
52... h4 {[%clk 0:00:22]} 53. Rf4 {[%clk 0:01:06.4]} 53... hxg3 {[%clk
0:00:22.2]} 54. hxg3 {[%clk 0:01:07.9]} 54... Bb3 {[%clk 0:00:23.1]} 55. Kc5
{[%clk 0:01:08.6]} 55... Bd5 {[%clk 0:00:22.3]} 56. Kd6 {[%clk 0:01:09.5]} 56...
g6 {[%clk 0:00:22.9]} 57. e6 {[%clk 0:01:10.8]} 57... Bxe6 {[%clk 0:00:23.1]}
58. Kxe6 {[%clk 0:01:11.8]} 58... c5 {[%clk 0:00:24.4]} 59. Kd5 {[%clk
0:01:12.3]} 1-0